bitfinex/quotes_ETHUSD_20240711
["timestamp","ask_amount","ask_price","bid_price","bid_amount"]
[1720735901776,1.11179362,3115.7,3114.9,6.731554]
[1720735902071,1.11179362,3115.6,3114.9,6.731554]
[1720735902276,1.11179362,3115.5,3115.0,3.21026]
[1720735902425,0.27417541,3115.8,3115.0,3.21026]
[1720735902860,1.11179515,3115.7,3115.0,3.21026]
[1720735903069,0.27417541,3115.8,3115.0,3.21026]
[1720735903360,1.11179524,3115.7,3115.0,3.21026]
[1720735903571,1.11179524,3115.6,3115.0,4.2044514]
[1720735903755,0.27417541,3115.8,3115.0,4.2044514]
[1720735903954,1.11175519,3115.7,3115.0,4.2044514]
[1720735904282,1.11175519,3115.6,3115.0,4.2044514]
[1720735904444,0.27417541,3115.8,3115.0,4.2044514]
[1720735904643,1.11175611,3115.7,3115.0,4.2044514]
[1720735904832,1.11175611,3115.6,3115.2,2.4637]
[1720735905036,0.27417541,3115.8,3115.2,2.4637]
[1720735905930,0.27417541,3115.8,3115.4,3.20985]
[1720735912196,1.11164529,3115.7,3115.4,3.20985]
[1720735912405,0.27417541,3115.8,3115.4,3.20985]
[1720735912696,0.27417541,3115.8,3115.2,5.67366]
[1720735912697,0.27417541,3115.8,3115.2,2.4637]
[1720735912911,0.27417541,3115.8,3114.8,7.48]
[1720735912912,4.32121189,3115.7,3114.8,7.48]
[1720735913064,2.4975,3115.5,3114.8,7.48]
[1720735913257,1.11192435,3115.4,3114.8,7.48]
[1720735913457,1.11192435,3115.3,3114.8,7.48]
[1720735913657,1.11192435,3115.4,3114.8,7.48]
[1720735915095,1.11192435,3115.3,3114.8,7.48]
[1720735915264,1.11192435,3115.2,3114.8,7.48]
[1720735915593,1.11192435,3115.1,3114.8,7.48]
[1720735915798,3.20975,3115.5,3114.5,3.21158605]
[1720735916002,1.47876785,3115.4,3114.5,3.21158605]
[1720735916297,1.11183898,3115.3,3114.5,3.21158605]
[1720735916464,1.11183898,3115.3,3114.5,6.42228605]
[1720735917058,1.11183898,3115.3,3114.5,3.21151605]
[1720735917263,1.11183898,3115.3,3114.5,6.42223605]
[1720735917876,1.11183898,3115.3,3114.5,3.21151605]
[1720735918083,1.58069077,3115.3,3114.5,0.00081605]
[1720735918290,1.11183898,3115.2,3114.5,0.00081605]
[1720735919494,1.11190177,3115.1,3114.5,3.21155605]
[1720735919806,1.11190177,3115.0,3114.5,3.21155605]
[1720735919978,1.11190177,3115.3,3114.5,3.21155605]
[1720735920179,1.58077747,3115.2,3114.5,3.21155605]
[1720735920497,1.11190841,3115.1,3114.5,3.21155605]
[1720735920716,1.11190841,3115.3,3114.5,3.21155605]
[1720735920899,1.11190841,3115.2,3114.5,3.21155605]
[1720735921221,1.11190841,3115.1,3114.5,3.21155605]
[1720735921395,1.11190841,3115.0,3114.5,3.21155605]
[1720735921600,1.11190841,3114.9,3114.5,4.09373166]
[1720735921804,3.57678887,3115.4,3114.5,4.09373166]
[1720735922108,3.57678887,3115.4,3114.5,3.21155605]
[1720735922324,1.11189184,3115.3,3114.5,0.00081605]
[1720735922609,3.57678887,3115.4,3114.5,0.00081605]
[1720735922610,3.21017,3115.1,3114.5,0.00081605]
[1720735922916,1.11189184,3115.0,3114.5,0.00081605]
[1720735923510,4.32217184,3115.0,3114.5,0.00081605]
[1720735923698,4.75455902,3114.9,3114.5,0.00081605]
[1720735923903,4.32237184,3114.8,3114.5,0.00081605]
[1720735924123,1.11189184,3114.7,3114.5,0.00081605]
[1720735924509,4.32248184,3114.7,3114.5,0.00081605]
[1720735924712,6.66887184,3114.6,3114.5,0.00081605]
[1720735925011,10.65681702,3114.6,3114.5,0.00081605]
[1720735925390,13.86788873,3114.6,3114.5,0.00081605]
[1720735925582,14.41788873,3114.6,3114.5,0.00081605]
[1720735925795,13.30560518,3114.6,3114.5,0.00081605]
[1720735926011,14.41792631,3114.6,3114.5,0.00081605]
[1720735928653,13.30560518,3114.6,3114.5,0.00081605]
[1720735928941,14.41787117,3114.6,3114.5,0.00081605]
[1720735929616,5.10021117,3114.6,3114.5,0.00081605]
[1720735931415,4.11226599,3114.6,3114.5,0.00081605]
[1720735931662,1.11226599,3114.6,3114.5,0.00081605]
[1720735931807,3.0,3114.8,3114.5,0.00081605]
[1720735932002,1.11212545,3114.7,3114.5,0.00081605]
[1720735932197,3.43221718,3114.9,3114.5,0.00081605]
[1720735932452,1.77637964,3114.8,3114.5,0.00081605]
[1720735932607,1.11212492,3114.7,3114.5,0.00081605]
[1720735932951,0.66425472,3114.8,3114.5,0.00081605]
[1720735933108,1.11213168,3114.7,3114.5,0.00081605]
[1720735933313,0.66425472,3114.8,3114.5,0.00081605]
[1720735933637,1.52176772,3114.7,3114.5,0.00081605]
[1720735933843,0.40964719,3114.7,3114.5,0.00081605]
[1720735934153,1.11214115,3114.6,3114.5,0.00081605]
[1720735934447,1.11213885,3114.6,3114.5,0.00081605]
[1720735934754,4.11213885,3114.6,3114.5,0.00081605]
[1720735934954,2.25179593,3114.6,3114.5,0.00081605]
[1720735935246,5.25179593,3114.6,3114.5,0.00081605]
[1720735935546,1.13965708,3114.6,3114.5,0.00081605]
[1720735935807,1.11215168,3114.6,3114.5,0.00081605]
[1720735937311,6.70933168,3114.6,3114.5,0.00081605]
[1720735937487,13.47001168,3114.6,3114.5,0.00081605]
[1720735938570,13.47016792,3114.6,3114.5,0.00081605]
[1720735938793,7.87298792,3114.6,3114.5,0.00081605]
[1720735938970,14.61948343,3114.6,3114.5,0.00081605]
[1720735942269,3.21151,3113.8,3113.2,7.48]
[1720735942469,1.11247988,3113.7,3113.1,2.3601]
[1720735942790,1.11247988,3113.6,3112.7,2.3601]
[1720735942997,1.11247988,3113.6,3112.7,5.5727]
[1720735944978,7.32425988,3113.6,3112.7,2.3601]
[1720735945313,4.32435988,3113.5,3112.7,2.3601]
[1720735945610,1.11263376,3113.4,3112.7,2.3601]
[1720735945799,1.11263376,3113.3,3112.7,2.3601]
[1720735946003,1.11264945,3113.2,3112.7,2.3601]
[1720735946169,1.11265244,3113.1,3112.7,2.3601]
[1720735946571,1.54512068,3113.1,3112.6,7.48]
[1720735946884,4.75735068,3113.1,3112.6,7.48]
[1720735947082,10.96958068,3113.1,3112.6,7.48]
[1720735947480,11.51958068,3113.1,3112.6,7.48]
[1720735948316,17.07861068,3113.1,3112.6,7.48]
[1720735948720,3.21241,3113.0,3111.6,7.48]
[1720735948920,3.21241,3113.0,3111.3,2.4389]
[1720735948921,3.21317,3112.2,3111.3,2.4389]
[1720735949122,4.32630981,3112.1,3111.3,2.4389]
[1720735949435,3.21327,3112.1,3111.0,3.21439]
[1720735949736,1.11317016,3112.0,3111.0,3.21439]
[1720735950044,3.21299,3112.4,3110.9,2.3557]
[1720735950335,0.621299,3112.3,3110.9,5.3557]
[1720735950530,3.621299,3112.3,3111.6,3.21372]
[1720735950744,3.0,3112.7,3111.8,3.21357]
[1720735950925,1.11295836,3112.6,3111.7,2.487]
[1720735951251,6.21266,3112.7,3111.7,5.7006]
[1720735951393,1.11295574,3112.6,3111.8,3.21357]
[1720735951591,1.29689257,3112.6,3111.8,3.21357]
[1720735951796,3.0,3112.8,3111.8,3.21357]
[1720735951997,1.11292393,3112.7,3111.8,3.21357]
[1720735952212,3.0,3112.8,3111.9,3.21345]
[1720735952742,4.1828984,3113.0,3111.9,3.21345]
[1720735952894,4.11289107,3112.9,3112.0,0.06426487]
[1720735953098,3.0,3113.1,3112.0,2.281]
[1720735953398,6.21173,3113.6,3112.5,3.21284]
[1720735953598,1.53324581,3113.5,3112.5,3.21284]
[1720735953906,1.11274741,3113.4,3112.5,3.21284]
[1720735954420,4.32473741,3113.4,3112.4,3.21293]
[1720735954610,4.11274741,3113.3,3112.4,3.21293]
[1720735954806,1.84522115,3113.2,3112.4,3.21293]
[1720735955007,3.6323884,3113.5,3112.4,3.21293]
[1720735955235,1.66273148,3113.4,3112.4,3.21293]
[1720735955440,0.55,3113.4,3112.4,3.21293]
[1720735955728,0.55,3113.4,3112.4,5.67723]
[1720735956301,3.55,3113.4,3112.4,5.67723]
[1720735956520,3.55,3113.4,3112.4,6.566256]
[1720735956521,4.226189,3113.4,3112.4,6.566256]
[1720735957917,1.11271263,3113.3,3112.3,3.21303]
[1720735958108,1.11271263,3113.2,3112.3,3.21303]
[1720735958347,1.11271263,3113.3,3112.3,3.21303]
[1720735958520,1.11271263,3113.3,3112.4,3.21295]
[1720735958721,0.897139,3113.2,3112.4,3.21295]
[1720735959156,0.897139,3113.2,3112.3,3.21303]
[1720735960314,3.897139,3113.2,3112.3,3.21303]
[1720735960744,3.21224,3113.1,3112.0,2.3049]
[1720735960945,4.11277693,3113.0,3112.0,2.3049]
[1720735961244,2.22151162,3112.9,3112.0,2.3049]
[1720735961448,2.22151162,3112.9,3112.0,5.51825]
[1720735961449,1.10873469,3112.9,3112.0,5.51825]
[1720735962711,1.11291407,3112.8,3111.7,3.21363]
[1720735962915,1.11291407,3112.8,3111.5,0.00081717]
[1720735962916,3.21315,3112.3,3111.5,0.00081717]
[1720735963118,1.11291407,3112.2,3111.5,0.00081717]
[1720735963319,7.32608407,3112.2,3111.5,0.00081717]
[1720735963519,1.11291407,3112.1,3111.5,0.00081717]
[1720735963820,0.73260841,3112.0,3111.5,0.00081717]
[1720735964841,1.11320672,3111.9,3111.5,0.00081717]
[1720735965040,6.94598841,3112.0,3111.5,0.00081717]
[1720735965242,1.11325238,3111.9,3111.5,0.00081717]
[1720735965548,6.94597841,3112.0,3111.5,0.00081717]
[1720735965856,1.01592384,3111.9,3111.5,0.00081717]
[1720735966417,3.0,3112.1,3111.5,0.00081717]
[1720735966741,1.11314787,3112.0,3111.5,0.00081717]
[1720735966943,3.0,3112.1,3111.5,0.00081717]
[1720735967134,3.0,3112.3,3111.5,0.00081717]
[1720735967331,1.11307622,3112.2,3111.5,0.00081717]
[1720735967534,0.41130762,3112.1,3111.5,0.00081717]
[1720735967739,3.0,3112.5,3111.6,3.21371]
[1720735968363,1.11295527,3112.4,3111.7,3.21366]
[1720735968546,0.54341088,3112.7,3111.8,3.21352]
[1720735968755,0.37560109,3112.6,3111.7,3.21366]
[1720735968935,1.48853739,3112.6,3111.7,3.21366]
[1720735969125,1.1129363,3112.5,3111.8,3.21354]
[1720735970268,1.1129363,3112.5,3111.6,3.21372]
[1720735970419,1.1129363,3112.5,3111.7,3.21367]
[1720735970873,1.93739813,3112.5,3111.8,3.21355]
[1720735971058,1.1129363,3112.4,3111.8,3.21355]
[1720735971853,1.1129363,3112.4,3111.6,3.21369]
[1720735972261,4.03733183,3112.5,3111.5,2.33381717]
[1720735972463,1.1130114,3112.3,3111.5,0.00081717]
[1720735972630,1.84561754,3112.2,3111.5,0.00081717]
[1720735972831,1.1130114,3112.1,3111.5,0.00081717]
[1720735973032,4.1130114,3112.1,3111.5,0.00081717]
[1720735973348,1.1130114,3112.0,3111.5,0.00081717]
[1720735975680,6.21326,3112.1,3111.5,0.00081717]
[1720735975844,1.80772682,3112.0,3111.5,0.00081717]
[1720735976050,1.11314003,3111.9,3111.5,0.00081717]
[1720735976372,1.11314003,3111.8,3111.5,0.00081717]
[1720735976598,3.21358,3111.8,3111.5,0.00081717]
[1720735976776,1.11314003,3111.7,3111.5,0.00081717]
[1720735976975,0.432672,3111.6,3111.5,0.00081717]
[1720735977160,1.54581203,3111.6,3111.5,0.00081717]
[1720735977359,1.11314003,3111.6,3111.5,0.00081717]
[1720735977558,3.69458661,3112.0,3111.5,0.00081717]
[1720735977882,1.11314166,3111.9,3111.5,0.00081717]
[1720735978080,1.11314166,3111.8,3111.5,0.00081717]
[1720735978386,1.11313891,3111.7,3111.5,0.00081717]
[1720735978689,3.0,3112.1,3111.5,5.49391717]
[1720735978847,1.11303276,3112.0,3111.5,5.49391717]
[1720735979047,1.11303907,3111.9,3111.5,6.36469889]
[1720735979347,3.0,3112.4,3111.5,6.36469889]
[1720735979547,1.11303331,3112.3,3111.6,3.21378]
[1720735979780,1.11303331,3112.2,3111.6,3.21378]
[1720735980083,1.11303331,3112.1,3111.6,3.21378]
[1720735980277,1.11303331,3112.3,3111.6,3.21378]
[1720735980477,1.11303331,3112.2,3111.6,3.21378]
[1720735980650,1.11303331,3112.1,3111.6,3.21378]
[1720735980857,1.11303331,3112.0,3111.6,4.08455972]
[1720735981051,3.0,3112.7,3111.6,4.08455972]
[1720735981250,1.11295818,3112.6,3111.6,4.08455972]
[1720735981484,6.21267,3112.7,3111.8,3.21356]
[1720735981653,1.11294702,3112.5,3111.8,3.21356]
[1720735981848,1.11294702,3112.4,3111.8,3.21356]
[1720735982098,1.11294702,3112.6,3111.8,3.21356]
[1720735982381,0.7325617,3112.5,3111.8,3.21356]
[1720735982590,1.11294702,3112.4,3111.8,3.21356]
[1720735982788,1.11294702,3112.4,3111.7,3.21361]
[1720735982988,3.21311,3112.3,3111.5,0.00081717]
[1720735983175,7.75872272,3112.2,3111.5,0.00081717]
[1720735983375,6.57771702,3112.1,3111.5,0.00081717]
[1720735983582,4.11294702,3112.0,3111.5,0.00081717]
[1720735983777,1.11294702,3111.9,3111.5,0.00081717]
[1720735983979,1.11294702,3112.0,3111.5,0.00081717]
[1720735984157,0.4112947,3111.9,3111.5,0.00081717]
[1720735984355,1.11294702,3111.8,3111.5,0.00081717]
[1720735985063,1.11310414,3111.7,3111.5,0.00081717]
[1720735985268,0.4112947,3111.9,3111.5,0.00081717]
[1720735985495,1.11310707,3111.8,3111.5,0.00081717]
[1720735985668,1.11310707,3111.7,3111.5,0.00081717]
[1720735985907,1.11310707,3111.6,3111.5,0.00081717]
[1720735986110,1.11310707,3111.7,3111.5,0.00081717]
[1720735986313,1.11310707,3111.6,3111.5,0.00081717]
[1720735987030,10.54066707,3111.6,3111.5,0.00081717]
[1720735987231,3.2144,3111.0,3110.4,12.29]
[1720735987535,3.21451,3110.9,3110.3,7.48]
[1720735987696,1.11353906,3110.8,3110.3,7.48]
[1720735987897,1.11353906,3110.7,3110.3,7.48]
[1720735988224,3.21414,3111.3,3110.3,10.69511]
[1720735988539,4.11342727,3111.2,3110.3,10.69511]
[1720735988844,1.11342727,3111.1,3110.4,3.21501]
[1720735988996,1.11342727,3111.0,3110.4,3.21501]
[1720735989314,1.11342727,3110.9,3110.4,3.21501]
[1720735989517,1.11342727,3110.8,3110.3,7.48]
[1720735989703,1.11342727,3110.7,3110.3,7.48]
[1720735990034,1.11342727,3110.6,3110.3,7.48]
[1720735990325,3.2144,3111.0,3110.3,7.48]
[1720735990542,1.11353678,3110.9,3110.3,7.48]
[1720735990692,1.54633046,3110.8,3110.0,3.21624272]
[1720735990895,1.11353678,3110.7,3110.0,3.21624272]
[1720735991407,0.43279368,3110.8,3110.0,3.21624272]
[1720735991595,0.43279368,3110.8,3110.0,0.00081272]
[1720735993925,3.21481,3110.6,3110.0,0.00081272]
[1720735994429,3.21492,3110.5,3110.0,0.00081272]
[1720735994631,3.21513,3110.3,3110.0,0.00081272]
[1720735994998,6.43035,3110.3,3110.0,0.00081272]
[1720735995317,3.21533,3110.1,3110.0,0.00081272]
[1720735995628,15.10949,3110.1,3110.0,0.00081272]
[1720735995830,3.21598,3109.5,3108.5,2.32001448]
[1720735996350,3.21598,3109.5,3108.5,5.53698448]
[1720735997311,3.21598,3109.5,3108.5,2.32001448]
[1720735997514,3.859172,3109.5,3108.5,2.87372793]
[1720735998313,3.21595,3109.5,3108.5,6.09063793]
[1720735998734,3.21595,3109.5,3108.6,3.21688]
[1720735999354,5.4635,3110.1,3108.9,3.21656]
[1720735999553,6.21543,3110.0,3109.0,3.21646]
[1720735999753,6.21461504,3110.0,3109.1,0.321646]
[1720736000626,2.99918504,3110.0,3109.0,3.21639]
[1720736001029,2.99918504,3110.0,3109.1,3.21635]
[1720736001329,0.6106535,3110.1,3109.1,3.21635]
[1720736001519,3.8259835,3110.1,3109.1,3.21635]
[1720736001720,3.8259835,3110.1,3109.0,3.21639]
[1720736001954,3.0,3110.0,3109.1,0.321639]
[1720736002145,3.0,3110.0,3109.1,3.537979]
[1720736002340,6.858255,3110.2,3109.1,3.537979]
[1720736003255,3.21467,3110.8,3109.6,3.21581]
[1720736003416,3.21462,3110.8,3109.7,3.21573]
[1720736003622,3.21489,3110.6,3109.3,2.281]
[1720736003857,3.21493,3110.5,3109.4,3.991962]
[1720736004456,3.21493,3110.5,3109.5,3.21593]
[1720736004671,3.0,3110.4,3109.6,3.21584]
[1720736004852,6.21474,3110.7,3109.7,3.537234]
[1720736005051,6.21474,3110.7,3109.7,3.21565]
[1720736005733,6.21474,3110.7,3109.6,3.21577]
[1720736005968,6.21474,3110.7,3109.7,3.21565]
[1720736006168,3.0,3110.7,3109.8,3.2156]
[1720736006463,3.0,3110.8,3109.9,0.643125]
[1720736007034,6.21463,3110.8,3109.9,0.643125]
[1720736007541,3.21471,3110.7,3109.9,0.643125]
[1720736007743,3.0,3110.6,3109.7,5.49674]
[1720736009637,3.21516,3110.3,3109.2,7.48]
[1720736009833,3.2154,3110.1,3109.2,7.48]
[1720736010037,3.0,3110.0,3109.3,0.748]
[1720736010353,3.21533,3110.1,3109.3,0.748]
[1720736010529,3.0,3110.0,3109.1,3.21634]
[1720736010730,3.0,3110.2,3109.1,3.21634]
[1720736010950,6.2153,3110.2,3109.1,3.21634]
[1720736011287,3.21544,3110.0,3108.9,3.2165]
[1720736011591,3.0,3110.2,3108.8,12.1044]
[1720736011592,3.21572,3109.8,3108.8,12.1044]
[1720736011887,3.21572,3109.8,3108.9,1.532117]
[1720736013859,3.21533,3110.1,3109.1,3.21629]
[1720736014169,4.11385301,3110.0,3108.9,4.748587]
[1720736014356,1.11385301,3109.9,3109.1,3.21635]
[1720736014556,1.11385301,3109.9,3109.2,0.321635]
[1720736014854,3.0,3110.0,3109.2,0.321635]
[1720736015055,3.0,3110.0,3109.3,2.4227]
[1720736015377,3.21519,3110.3,3109.3,2.4227]
[1720736015378,1.11381506,3109.9,3109.3,2.4227]
[1720736015557,3.0,3110.2,3109.3,2.4227]
[1720736015558,3.21533,3110.1,3109.3,2.4227]
[1720736015903,4.11377913,3110.0,3109.3,3.2468615]
[1720736016109,3.0,3110.0,3109.3,3.2468615]
[1720736016266,1.11380823,3109.9,3109.3,3.2468615]
[1720736016460,6.21533,3110.1,3109.3,3.2468615]
[1720736016461,1.11380823,3109.8,3109.3,3.2468615]
[1720736016795,6.21533,3110.1,3109.3,3.2468615]
[1720736017100,1.11383558,3110.0,3109.3,3.2468615]
[1720736017285,1.11383558,3109.9,3109.4,0.4430621]
[1720736017488,1.11383558,3110.1,3109.4,0.4430621]
[1720736017682,1.11383317,3110.0,3109.4,0.4430621]
[1720736017860,1.11383317,3110.1,3109.4,0.4430621]
[1720736018060,1.11383317,3110.1,3109.3,3.2468615]
[1720736018061,4.26976732,3110.1,3109.3,2.4227]
[1720736018260,4.11386196,3110.0,3109.3,2.4227]
[1720736018498,1.11386196,3109.9,3109.3,2.4227]
[1720736018696,1.11386196,3109.8,3109.3,2.4227]
[1720736018865,3.0,3110.2,3109.3,2.4227]
[1720736019066,1.11384064,3110.1,3109.3,3.214695]
[1720736019266,1.11384064,3110.0,3109.3,3.214695]
[1720736019466,3.21566,3109.8,3108.8,9.761]
[1720736019715,4.11384064,3109.7,3108.8,9.761]
[1720736020011,1.11384064,3109.6,3108.8,9.761]
[1720736020521,3.21596,3109.5,3108.7,2.3975]
[1720736020671,4.5468207,3109.4,3108.7,2.3975]
[1720736020870,1.11384064,3109.3,3108.7,2.3975]
[1720736021063,1.11384064,3109.3,3108.8,3.21666]
[1720736021268,1.11384064,3109.5,3108.8,3.21666]
[1720736021484,3.0,3109.6,3108.8,3.21666]
[1720736021716,1.11397178,3109.5,3108.8,3.21666]
[1720736021915,1.11397178,3109.4,3108.9,0.883084]
[1720736022071,1.11397178,3109.3,3108.9,0.883084]
[1720736022278,1.11396519,3109.2,3108.7,2.3975]
[1720736022484,1.11396519,3109.1,3108.7,2.3975]
[1720736022682,1.11396519,3109.0,3108.7,2.3975]
[1720736022930,1.11396519,3109.6,3108.7,2.3975]
[1720736023095,1.11404072,3109.5,3108.7,2.3975]
[1720736023424,1.11404072,3109.4,3108.7,2.3975]
[1720736024484,4.33010072,3109.4,3108.7,2.3975]
[1720736024723,1.11404072,3109.3,3108.5,3.21775448]
[1720736024924,3.21606,3109.4,3108.5,3.21775448]
[1720736025084,1.11406878,3109.3,3108.5,3.21775448]
[1720736025283,1.11406936,3109.2,3108.5,0.00081448]
[1720736025495,1.11406936,3109.1,3108.5,0.00081448]
[1720736025698,1.11406936,3109.0,3108.5,1.85281693]
[1720736025897,3.21606,3109.4,3108.5,1.85281693]
[1720736026124,1.11407095,3109.3,3108.7,3.21677]
[1720736026427,1.11407095,3109.2,3108.5,0.00081448]
[1720736026745,1.11407095,3109.1,3108.5,0.00081448]
[1720736027040,1.11407095,3109.0,3108.5,3.21779448]
[1720736027335,3.21606,3109.4,3108.6,0.78227945]
[1720736027484,1.11406407,3109.3,3108.6,0.78227945]
[1720736027690,1.11406407,3109.2,3108.6,0.78227945]
[1720736028031,1.11406407,3109.1,3108.6,0.78227945]
[1720736028326,1.11407366,3109.0,3108.6,0.78227945]
[1720736028734,3.21606,3109.4,3108.6,0.78227945]
[1720736028884,1.11407263,3109.3,3108.6,0.78227945]
[1720736029085,1.11407263,3109.2,3108.6,0.78227945]
[1720736029429,1.11407263,3109.1,3108.6,0.78227945]
[1720736029735,3.21606,3109.4,3108.7,0.40000739]
[1720736029736,1.11407263,3109.0,3108.7,0.40000739]
[1720736030032,3.21606,3109.4,3108.5,0.00081448]
[1720736030245,1.11407862,3109.3,3108.5,0.00081448]
[1720736030388,1.11407862,3109.2,3108.5,0.00081448]
[1720736030583,3.21648,3109.0,3108.5,0.00081448]
[1720736030825,1.11407862,3108.9,3108.5,0.00081448]
[1720736030999,1.11407862,3109.1,3108.5,0.00081448]
[1720736031586,1.11417905,3109.0,3108.5,0.00081448]
[1720736031802,1.11417905,3108.9,3108.5,0.00081448]
[1720736031989,1.11417905,3108.8,3108.5,0.00081448]
[1720736032195,3.21644,3109.1,3108.5,0.00081448]
[1720736032516,1.11416552,3109.0,3108.5,0.00081448]
[1720736032689,1.11416552,3108.9,3108.5,0.00081448]
[1720736032890,1.11416552,3109.1,3108.5,0.00081448]
[1720736033089,2.16884407,3109.1,3108.5,0.00081448]
[1720736033289,1.11416552,3109.0,3108.5,0.00081448]
[1720736033592,1.11416552,3108.9,3108.5,0.00081448]
[1720736033898,1.11416552,3108.8,3108.5,0.00081448]
[1720736034096,4.33063552,3109.0,3108.5,0.00081448]
[1720736034302,1.97433293,3108.9,3108.5,0.00081448]
[1720736034605,1.11416552,3108.8,3108.5,0.00081448]
[1720736035007,0.86016741,3108.9,3108.5,0.00081448]
[1720736035212,1.11426699,3108.8,3108.5,0.00081448]
[1720736035424,1.11425655,3108.7,3108.5,0.00081448]
[1720736035605,1.11425655,3108.6,3108.5,0.00081448]
[1720736037890,1.11424772,3108.6,3108.5,0.00081448]
[1720736038338,6.21668,3108.8,3108.5,0.00081448]
[1720736038547,1.11429637,3108.6,3108.5,0.00081448]
[1720736038698,2.05762137,3108.7,3108.5,0.00081448]
[1720736039028,1.11429637,3108.6,3108.5,0.00081448]
[1720736039233,4.33117637,3108.6,3108.5,0.00081448]
[1720736039453,7.33117637,3108.6,3108.5,0.00081448]
[1720736039598,8.45862651,3108.6,3108.5,0.00081448]
[1720736039788,11.67550651,3108.6,3108.5,0.00081448]
[1720736039996,12.22550651,3108.6,3108.5,0.00081448]
[1720736040243,17.89568651,3108.6,3108.5,0.00081448]
[1720736040535,14.67880651,3108.6,3108.5,0.00081448]
[1720736041111,14.67898717,3108.6,3108.5,0.00081448]
[1720736041604,4.11447703,3108.6,3108.5,0.00081448]
[1720736041799,1.11447703,3108.6,3108.5,0.00081448]
[1720736044309,1.11421021,3108.6,3108.5,0.00081448]
[1720736044846,3.21647,3109.0,3108.5,0.00081448]
[1720736045007,7.33083524,3108.9,3108.5,0.00081448]
[1720736045216,2.16899576,3108.8,3108.5,0.00081448]
[1720736045520,3.21629,3109.2,3108.5,0.00081448]
[1720736045521,1.11426524,3108.7,3108.5,0.00081448]
[1720736045724,3.21664,3108.9,3108.5,0.00081448]
[1720736046035,3.21685,3108.7,3108.5,0.00081448]
[1720736046241,1.11426524,3108.6,3108.5,0.00081448]
[1720736046544,4.11426524,3108.6,3108.5,0.00081448]
[1720736046751,1.11426524,3108.6,3108.5,0.00081448]
[1720736047230,1.11425663,3108.6,3108.5,0.00081448]
[1720736047637,1.11425686,3108.6,3108.5,0.00081448]
[1720736051027,6.21658,3108.9,3108.5,0.00081448]
[1720736051226,4.33103437,3108.8,3108.5,0.00081448]
[1720736051430,7.33107437,3108.7,3108.5,0.00081448]
[1720736051740,1.11429437,3108.6,3108.5,0.00081448]
[1720736052079,4.11429437,3108.6,3108.5,0.00081448]
[1720736052244,4.84740181,3108.6,3108.5,0.00081448]
[1720736052768,8.06428181,3108.6,3108.5,0.00081448]
[1720736053367,11.83116181,3108.6,3108.5,0.00081448]
[1720736054128,12.25166021,3108.6,3108.5,0.00081448]
[1720736054324,11.13736584,3108.6,3108.5,0.00081448]
[1720736054674,12.25195774,3108.6,3108.5,0.00081448]
[1720736054885,12.25197987,3108.6,3108.5,0.00081448]
[1720736055169,15.46885987,3108.6,3108.5,0.00081448]
[1720736055336,3.21753,3108.0,3107.1,2.2816]
[1720736055542,4.11461403,3107.9,3107.1,2.2816]
[1720736055758,3.21789,3107.7,3107.0,0.00082753]
[1720736056060,1.11461403,3107.6,3107.0,0.00082753]
[1720736056675,5.08760343,3107.6,3107.0,0.00082753]
[1720736056856,1.11461403,3107.5,3107.0,0.00082753]
[1720736057030,4.33264403,3107.5,3107.0,0.00082753]
[1720736057228,4.33294235,3107.4,3107.0,0.00082753]
[1720736057567,3.21837,3107.2,3107.0,0.00082753]
[1720736057738,1.43672008,3107.1,3107.0,0.00082753]
[1720736058152,1.11488308,3107.1,3107.0,0.00082753]
[1720736058476,2.3449,3108.0,3107.0,0.00082753]
[1720736058682,4.11468832,3107.9,3107.0,0.00082753]
[1720736058879,4.33240832,3107.8,3107.0,0.00082753]
[1720736059180,4.11468832,3107.7,3107.0,0.00082753]
[1720736059480,1.11468832,3107.6,3107.0,0.00082753]
[1720736059791,1.11468832,3107.6,3107.0,3.21933753]
[1720736059966,1.11468832,3107.7,3107.0,3.21933753]
[1720736060279,1.11461867,3107.6,3107.0,0.00082753]
[1720736060431,1.11461867,3107.5,3107.0,0.00082753]
[1720736060751,6.2175,3108.0,3107.0,0.00082753]
[1720736060952,2.05817068,3107.9,3107.0,0.00082753]
[1720736061164,1.11467268,3107.8,3107.0,0.00082753]
[1720736061388,1.11467268,3107.7,3107.0,0.00082753]
[1720736061593,1.11467268,3107.6,3107.0,0.00082753]
[1720736061735,1.11467268,3107.5,3107.0,0.00082753]
[1720736061935,0.943498,3107.9,3107.0,0.00082753]
[1720736062132,1.83078241,3107.8,3107.0,0.00082753]
[1720736062365,1.11468261,3107.7,3107.0,0.00082753]
[1720736062575,1.11468261,3107.6,3107.0,0.00082753]
[1720736062777,1.11468261,3107.5,3107.0,0.00082753]
[1720736062952,3.7160998,3107.8,3107.0,0.00082753]
[1720736063156,1.902406,3107.7,3107.0,0.00082753]
[1720736063342,1.11468522,3107.6,3107.0,0.00082753]
[1720736063543,4.11468522,3107.6,3107.0,0.00082753]
[1720736063777,1.11468522,3107.5,3107.0,0.00082753]
[1720736064440,4.00560078,3107.7,3107.0,0.00082753]
[1720736064441,6.21794,3107.6,3107.0,0.00082753]
[1720736064799,2.13712138,3107.5,3107.0,0.00082753]
[1720736065286,1.02235408,3107.5,3107.0,0.00082753]
[1720736065442,3.0,3107.7,3106.8,2.2545]
[1720736065643,1.11470938,3107.6,3106.8,2.2545]
[1720736065844,1.11470938,3107.5,3106.8,2.2545]
[1720736066076,3.0,3107.7,3106.8,2.2545]
[1720736066286,1.11470129,3107.6,3106.8,2.2545]
[1720736066491,1.11470129,3107.5,3106.8,3.029934]
[1720736066805,1.11470129,3107.6,3106.8,3.029934]
[1720736067096,1.11469943,3107.5,3106.8,3.029934]
[1720736067256,3.0,3107.7,3106.8,3.029934]
[1720736067499,1.11387269,3107.6,3106.8,3.029934]
[1720736067693,6.21781,3107.7,3106.9,0.6248774]
[1720736067840,6.21781,3107.7,3106.8,3.029934]
[1720736068236,6.21781,3107.7,3106.8,2.2545]
[1720736068788,3.0,3107.7,3106.8,2.2545]
[1720736069142,3.0,3107.8,3106.8,2.2545]
[1720736070641,3.21785,3107.7,3106.8,2.2545]
[1720736070842,3.0,3107.6,3106.8,2.2545]
[1720736072089,3.0,3107.6,3106.8,3.029934]
[1720736072260,3.0,3107.8,3106.8,6.248664]
[1720736073374,6.21779,3107.8,3106.8,6.248664]
[1720736073788,6.21779,3107.8,3106.8,5.47323]
[1720736074574,3.21781,3107.7,3106.8,5.47323]